[Event "*** SCC Grand Prix: Titled Tuesday Blitz"]
[Site "Chess.com"]
[Date "2020.09.29"]
[Round "10"]
[White "KaspMagAlpha"]
[Black "SergeyShtyka"]
[Result "1-0"]
[WhiteElo "2254"]
[BlackElo "2322"]
[TimeControl "180+1"]
[EndTime "11:57:18 PDT"]
[Termination "KaspMagAlpha won by checkmate"]

1. d4 {[%clk 0:02:29.3]} 1... c5 {[%clk 0:03:00.9]} 2. d5 {[%clk 0:02:28.4]}
2... e5 {[%clk 0:03:00.8]} 3. dxe6 {[%clk 0:02:23.1]} 3... d6 {[%clk 0:03:01.7]}
4. exf7+ {[%clk 0:02:22.3]} 4... Kxf7 {[%clk 0:03:02.1]} 5. Nf3 {[%clk
0:02:21.8]} 5... Nf6 {[%clk 0:03:01.9]} 6. g3 {[%clk 0:02:19.9]} 6... Nc6 {[%clk
0:03:01.4]} 7. Bg2 {[%clk 0:02:19.9]} 7... Be7 {[%clk 0:03:01.6]} 8. O-O {[%clk
0:02:19]} 8... Rf8 {[%clk 0:03:01.9]} 9. c4 {[%clk 0:02:13.8]} 9... Kg8 {[%clk
0:03:01.9]} 10. a3 {[%clk 0:02:14.1]} 10... Kh8 {[%clk 0:02:58.5]} 11. Nc3
{[%clk 0:02:13.7]} 11... Be6 {[%clk 0:02:58.6]} 12. Nd5 {[%clk 0:02:10.7]} 12...
Bxd5 {[%clk 0:02:52]} 13. cxd5 {[%clk 0:02:10.4]} 13... Nb8 {[%clk 0:02:48.3]}
14. Ng5 {[%clk 0:02:09.9]} 14... Qd7 {[%clk 0:02:43.8]} 15. Ne6 {[%clk
0:02:09.9]} 15... Rg8 {[%clk 0:02:43.7]} 16. Bh3 {[%clk 0:02:07.2]} 16... Na6
{[%clk 0:02:32.4]} 17. Ng5 {[%clk 0:02:02]} 17... Qe8 {[%clk 0:02:32.6]} 18. Be6
{[%clk 0:01:59.2]} 18... Rf8 {[%clk 0:02:32.9]} 19. b3 {[%clk 0:01:51.8]} 19...
Nc7 {[%clk 0:02:32.7]} 20. Bh3 {[%clk 0:01:50.3]} 20... Nfxd5 {[%clk 0:02:25.5]}
21. Ne6 {[%clk 0:01:49.2]} 21... Nxe6 {[%clk 0:02:22.6]} 22. Qxd5 {[%clk
0:01:47.1]} 22... Ng5 {[%clk 0:02:06.7]} 23. Bxg5 {[%clk 0:01:44.8]} 23... Bxg5
{[%clk 0:02:04.3]} 24. Qxd6 {[%clk 0:01:42.2]} 24... Qxe2 {[%clk 0:01:57.6]} 25.
Qxc5 {[%clk 0:01:35.6]} 25... h6 {[%clk 0:01:40.1]} 26. Rae1 {[%clk 0:01:29.1]}
26... Qf3 {[%clk 0:01:35.2]} 27. Qb4 {[%clk 0:01:17.5]} 27... a5 {[%clk
0:01:32.3]} 28. Qb5 {[%clk 0:01:15.9]} 28... a4 {[%clk 0:01:27.4]} 29. bxa4
{[%clk 0:01:13.6]} 29... Qxa3 {[%clk 0:01:27]} 30. Qxb7 {[%clk 0:01:09.6]} 30...
Qxa4 {[%clk 0:01:26.4]} 31. Bg2 {[%clk 0:01:08.4]} 31... Rab8 {[%clk 0:01:24.9]}
32. Qd5 {[%clk 0:01:07.7]} 32... Qb4 {[%clk 0:01:23.3]} 33. h4 {[%clk
0:01:05.6]} 33... Bf6 {[%clk 0:01:18.1]} 34. Re4 {[%clk 0:01:04.7]} 34... Qb5
{[%clk 0:01:13.9]} 35. Qd2 {[%clk 0:01:01]} 35... Rbd8 {[%clk 0:01:09.7]} 36.
Qe3 {[%clk 0:00:57.2]} 36... Qd7 {[%clk 0:01:06.6]} 37. Kh2 {[%clk 0:00:56]}
37... Bd4 {[%clk 0:01:03.8]} 38. Qe2 {[%clk 0:00:55.4]} 38... Bf6 {[%clk
0:01:02.8]} 39. Bh3 {[%clk 0:00:55.1]} 39... Qf7 {[%clk 0:01:01]} 40. Be6 {[%clk
0:00:53.4]} 40... Qg6 {[%clk 0:00:58.4]} 41. Ba2 {[%clk 0:00:49.9]} 41... Rd2
{[%clk 0:00:56.7]} 42. Qxd2 {[%clk 0:00:43.9]} 42... Qxe4 {[%clk 0:00:56.6]} 43.
Bb1 {[%clk 0:00:44.3]} 43... Qg4 {[%clk 0:00:53.1]} 44. Qd3 {[%clk 0:00:42.9]}
44... Kg8 {[%clk 0:00:35.4]} 45. Ba2+ {[%clk 0:00:37.9]} 45... Kh8 {[%clk
0:00:34.7]} 46. Bb1 {[%clk 0:00:37.4]} 46... Kg8 {[%clk 0:00:35.1]} 47. Qh7+
{[%clk 0:00:36.3]} 47... Kf7 {[%clk 0:00:35.2]} 48. Ba2+ {[%clk 0:00:34.4]}
48... Ke7 {[%clk 0:00:33.7]} 49. Re1+ {[%clk 0:00:34.1]} 49... Kd6 {[%clk
0:00:30.8]} 50. Qd3+ {[%clk 0:00:31.5]} 50... Qd4 {[%clk 0:00:30.8]} 51. Re6+
{[%clk 0:00:30.9]} 51... Kc7 {[%clk 0:00:26.4]} 52. Qc2+ {[%clk 0:00:26]} 52...
Kd8 {[%clk 0:00:24.5]} 53. Re2 {[%clk 0:00:21.4]} 53... Qc3 {[%clk 0:00:18.6]}
54. Qe4 {[%clk 0:00:15.8]} 54... Bd4 {[%clk 0:00:05.3]} 55. Qe7+ {[%clk
0:00:14.6]} 55... Kc8 {[%clk 0:00:05.8]} 56. Qxf8+ {[%clk 0:00:14.9]} 56... Kb7
{[%clk 0:00:06.3]} 57. Qf7+ {[%clk 0:00:14.3]} 57... Ka6 {[%clk 0:00:06.5]} 58.
Bd5 {[%clk 0:00:14.2]} 58... Bxf2 {[%clk 0:00:05.6]} 59. Bc4+ {[%clk 0:00:14.5]}
59... Ka5 {[%clk 0:00:05.4]} 60. Qxf2 {[%clk 0:00:14.3]} 60... g5 {[%clk
0:00:05.6]} 61. hxg5 {[%clk 0:00:13.2]} 61... hxg5 {[%clk 0:00:06.5]} 62. Qg2
{[%clk 0:00:13]} 62... g4 {[%clk 0:00:06.6]} 63. Rf2 {[%clk 0:00:13.9]} 63...
Kb4 {[%clk 0:00:06.8]} 64. Rf4 {[%clk 0:00:13.9]} 64... Ka3 {[%clk 0:00:06.6]}
65. Bd5 {[%clk 0:00:14.1]} 65... Qxg3+ {[%clk 0:00:04.7]} 66. Qxg3+ {[%clk
0:00:13.2]} 66... Kb2 {[%clk 0:00:04.8]} 67. Rf2+ {[%clk 0:00:14.1]} 67... Kc1
{[%clk 0:00:04.8]} 68. Qg1# {[%clk 0:00:04.3]} 1-0

[Event "*** SCC Grand Prix: Titled Tuesday Blitz"]
[Site "Chess.com"]
[Date "2020.09.29"]
[Round "10"]
[White "VladimirBugayev"]
[Black "ChessArchitect64"]
[Result "1-0"]
[WhiteElo "2260"]
[BlackElo "1995"]
[TimeControl "180+1"]
[EndTime "11:57:18 PDT"]
[Termination "VladimirBugayev won by resignation"]

1. d4 {[%clk 0:03:00.9]} 1... d5 {[%clk 0:02:59.1]} 2. Bf4 {[%clk 0:03:00.2]}
2... c6 {[%clk 0:02:57.2]} 3. e3 {[%clk 0:02:59.8]} 3... Nf6 {[%clk 0:02:57.2]}
4. Nf3 {[%clk 0:02:58.7]} 4... Bf5 {[%clk 0:02:57.1]} 5. Nbd2 {[%clk 0:02:54.1]}
5... e6 {[%clk 0:02:57.1]} 6. Bd3 {[%clk 0:02:54.2]} 6... Bg6 {[%clk 0:02:54.7]}
7. O-O {[%clk 0:02:53]} 7... Nbd7 {[%clk 0:02:54.6]} 8. c3 {[%clk 0:02:45.4]}
8... Be7 {[%clk 0:02:53.9]} 9. Qc2 {[%clk 0:02:31.8]} 9... O-O {[%clk
0:02:53.1]} 10. Rfe1 {[%clk 0:02:29.6]} 10... Bxd3 {[%clk 0:02:48.3]} 11. Qxd3
{[%clk 0:02:29]} 11... c5 {[%clk 0:02:49.2]} 12. h3 {[%clk 0:02:25.5]} 12...
cxd4 {[%clk 0:02:49.4]} 13. exd4 {[%clk 0:02:25.1]} 13... Rc8 {[%clk 0:02:42.3]}
14. a4 {[%clk 0:02:19.8]} 14... Qb6 {[%clk 0:02:34.6]} 15. Reb1 {[%clk
0:02:04.9]} 15... Qa6 {[%clk 0:02:28.4]} 16. Qe3 {[%clk 0:01:52.2]} 16... Qc6
{[%clk 0:02:13.1]} 17. Ne5 {[%clk 0:01:51]} 17... Nxe5 {[%clk 0:02:04.3]} 18.
dxe5 {[%clk 0:01:46.3]} 18... Nd7 {[%clk 0:02:02]} 19. Qxa7 {[%clk 0:01:39]}
19... Bc5 {[%clk 0:01:53.2]} 20. Qa5 {[%clk 0:01:37.7]} 20... Ra8 {[%clk
0:01:10.8]} 21. Qb5 {[%clk 0:01:35.9]} 21... Qc7 {[%clk 0:01:07.7]} 22. Nb3
{[%clk 0:01:27.2]} 22... Be7 {[%clk 0:01:07.5]} 23. Re1 {[%clk 0:01:12.2]} 23...
Rfc8 {[%clk 0:00:59.5]} 24. Nd4 {[%clk 0:01:09.9]} 24... Nb6 {[%clk 0:00:46.1]}
25. Qe2 {[%clk 0:00:40]} 25... Qc4 {[%clk 0:00:33.8]} 26. a5 {[%clk 0:00:34.1]}
26... Qxe2 {[%clk 0:00:33.2]} 27. Rxe2 {[%clk 0:00:33]} 27... Nc4 {[%clk
0:00:33.6]} 28. b4 {[%clk 0:00:27.7]} 28... h6 {[%clk 0:00:12.9]} 29. Nb5 {[%clk
0:00:27.3]} 29... g5 {[%clk 0:00:12]} 30. Bg3 {[%clk 0:00:25.2]} 30... Bf8
{[%clk 0:00:10.7]} 31. f4 {[%clk 0:00:23.9]} 31... gxf4 {[%clk 0:00:10.7]} 32.
Bxf4 {[%clk 0:00:24.8]} 32... Kh7 {[%clk 0:00:11.2]} 33. Kf2 {[%clk 0:00:19.9]}
33... Kg6 {[%clk 0:00:10.5]} 34. Kf3 {[%clk 0:00:17.7]} 34... Be7 {[%clk
0:00:08.4]} 35. g4 {[%clk 0:00:17]} 35... Kh7 {[%clk 0:00:08.2]} 36. Rg2 {[%clk
0:00:15.4]} 36... Rg8 {[%clk 0:00:08.1]} 37. Rag1 {[%clk 0:00:13.2]} 37... b6
{[%clk 0:00:07.2]} 38. Nd6 {[%clk 0:00:11.8]} 38... Bxd6 {[%clk 0:00:06.7]} 39.
exd6 {[%clk 0:00:12.7]} 39... f6 {[%clk 0:00:06.8]} 40. axb6 {[%clk 0:00:09.7]}
40... Nxb6 {[%clk 0:00:06.3]} 41. Be3 {[%clk 0:00:10.3]} 41... Nd7 {[%clk
0:00:06.4]} 42. Bc5 {[%clk 0:00:10.5]} 42... e5 {[%clk 0:00:06.4]} 43. h4 {[%clk
0:00:09.4]} 43... Nxc5 {[%clk 0:00:05.6]} 44. bxc5 {[%clk 0:00:08.4]} 44... Ra5
{[%clk 0:00:05.9]} 45. c6 {[%clk 0:00:08]} 45... Rc5 {[%clk 0:00:05.1]} 46. c7
{[%clk 0:00:07.9]} 46... Rc6 {[%clk 0:00:05]} 47. g5 {[%clk 0:00:07.9]} 47...
fxg5 {[%clk 0:00:04]} 48. hxg5 {[%clk 0:00:08.8]} 48... Rxd6 {[%clk 0:00:04.5]}
49. gxh6 {[%clk 0:00:07.6]} 49... Rf8+ {[%clk 0:00:04.2]} 50. Ke3 {[%clk
0:00:07.3]} 50... Rxh6 {[%clk 0:00:04.4]} 51. Rg7+ {[%clk 0:00:07.2]} 51... Kh8
{[%clk 0:00:04.8]} 52. Rg8+ {[%clk 0:00:07.7]} 52... Rxg8 {[%clk 0:00:05.2]} 53.
Rxg8+ {[%clk 0:00:08.2]} 53... Kxg8 {[%clk 0:00:06.1]} 54. c8=Q+ {[%clk
0:00:08.7]} 54... Kh7 {[%clk 0:00:06.3]} 55. Qd7+ {[%clk 0:00:08.5]} 55... Kh8
{[%clk 0:00:06.3]} 56. Qxd5 {[%clk 0:00:08.6]} 56... Rh5 {[%clk 0:00:06.3]} 57.
Qe6 {[%clk 0:00:08.2]} 57... Kg7 {[%clk 0:00:06.1]} 58. Qe7+ {[%clk 0:00:07.7]}
58... Kg6 {[%clk 0:00:06.2]} 59. Ke4 {[%clk 0:00:07.7]} 59... Rh1 {[%clk
0:00:05]} 60. Qxe5 {[%clk 0:00:05.8]} 60... Re1+ {[%clk 0:00:05]} 61. Kd5 {[%clk
0:00:06.7]} 61... Rxe5+ {[%clk 0:00:04.4]} 62. Kxe5 {[%clk 0:00:07.6]} 62... Kf7
{[%clk 0:00:05.2]} 63. Kd6 {[%clk 0:00:07.9]} 63... Ke8 {[%clk 0:00:05.8]} 64.
Kc7 {[%clk 0:00:06.5]} 64... Ke7 {[%clk 0:00:06.1]} 65. c4 {[%clk 0:00:06.8]}
65... Ke6 {[%clk 0:00:06.7]} 66. c5 {[%clk 0:00:07.2]} 66... Kd5 {[%clk
0:00:07.6]} 67. c6 {[%clk 0:00:07.4]} 67... Kc5 {[%clk 0:00:08.5]} 68. Kd7
{[%clk 0:00:07.6]} 68... Kb6 {[%clk 0:00:09.4]} 69. c7 {[%clk 0:00:08.1]} 69...
Kb7 {[%clk 0:00:10.2]} 70. c8=Q+ {[%clk 0:00:08.2]} 1-0

[Event "*** SCC Grand Prix: Titled Tuesday Blitz"]
[Site "Chess.com"]
[Date "2020.09.29"]
[Round "10"]
[White "Sjakkerntobi"]
[Black "antoszu"]
[Result "0-1"]
[WhiteElo "2429"]
[BlackElo "2594"]
[TimeControl "180+1"]
[EndTime "11:57:19 PDT"]
[Termination "antoszu won on time"]

1. e4 {[%clk 0:03:00.9]} 1... c5 {[%clk 0:02:56.4]} 2. Nf3 {[%clk 0:03:01]} 2...
d6 {[%clk 0:02:56.5]} 3. d4 {[%clk 0:03:01.5]} 3... cxd4 {[%clk 0:02:57.4]} 4.
Qxd4 {[%clk 0:03:02.4]} 4... Nc6 {[%clk 0:02:56.3]} 5. Bb5 {[%clk 0:03:02.9]}
5... Bd7 {[%clk 0:02:56.4]} 6. Bxc6 {[%clk 0:03:03.8]} 6... Bxc6 {[%clk
0:02:57.3]} 7. Nc3 {[%clk 0:03:04.4]} 7... Nf6 {[%clk 0:02:57.2]} 8. Bg5 {[%clk
0:03:05.1]} 8... e6 {[%clk 0:02:57.4]} 9. O-O-O {[%clk 0:03:05.7]} 9... Be7
{[%clk 0:02:57.5]} 10. Qd3 {[%clk 0:03:06.3]} 10... Qa5 {[%clk 0:02:56.7]} 11.
h4 {[%clk 0:03:06.1]} 11... O-O {[%clk 0:02:56]} 12. Nd4 {[%clk 0:03:06]} 12...
Rac8 {[%clk 0:02:52.8]} 13. f4 {[%clk 0:03:04.4]} 13... Rfe8 {[%clk 0:02:35.3]}
14. Bxf6 {[%clk 0:03:00.9]} 14... Bxf6 {[%clk 0:02:33.1]} 15. g4 {[%clk
0:03:01.8]} 15... Qb6 {[%clk 0:02:19.9]} 16. g5 {[%clk 0:02:59.2]} 16... Bxd4
{[%clk 0:02:19.2]} 17. Qxd4 {[%clk 0:03:00.1]} 17... Qxd4 {[%clk 0:02:20]} 18.
Rxd4 {[%clk 0:03:01]} 18... b5 {[%clk 0:02:09.9]} 19. a3 {[%clk 0:02:57.6]}
19... a5 {[%clk 0:02:09.3]} 20. Re1 {[%clk 0:02:39.2]} 20... e5 {[%clk
0:02:05.7]} 21. Rxd6 {[%clk 0:02:38.7]} 21... exf4 {[%clk 0:02:02.4]} 22. Rf1
{[%clk 0:02:37]} 22... b4 {[%clk 0:01:58.5]} 23. axb4 {[%clk 0:02:37]} 23...
axb4 {[%clk 0:01:59.4]} 24. Nd5 {[%clk 0:02:37.1]} 24... Bb5 {[%clk 0:01:37.3]}
25. Rxf4 {[%clk 0:02:28.1]} 25... Ba4 {[%clk 0:01:17]} 26. c3 {[%clk 0:02:16]}
26... Bb3 {[%clk 0:01:08.1]} 27. Kd2 {[%clk 0:02:11.6]} 27... bxc3+ {[%clk
0:01:05.1]} 28. Nxc3 {[%clk 0:02:10.6]} 28... Be6 {[%clk 0:01:04.8]} 29. Rf1
{[%clk 0:02:02.2]} 29... Rb8 {[%clk 0:01:03.5]} 30. Rb1 {[%clk 0:02:00.5]} 30...
Rb4 {[%clk 0:00:59.9]} 31. Kd3 {[%clk 0:01:50.7]} 31... Reb8 {[%clk 0:00:51.4]}
32. Rd4 {[%clk 0:01:48.3]} 32... Rb3 {[%clk 0:00:45.9]} 33. Kc2 {[%clk
0:01:34.2]} 33... Kf8 {[%clk 0:00:45]} 34. Ra4 {[%clk 0:01:29.5]} 34... R3b6
{[%clk 0:00:30.9]} 35. b4 {[%clk 0:01:27]} 35... Bd7 {[%clk 0:00:28.3]} 36. Ra7
{[%clk 0:01:04.2]} 36... Be8 {[%clk 0:00:27.8]} 37. Nd5 {[%clk 0:00:59.2]} 37...
Re6 {[%clk 0:00:25.1]} 38. Kd3 {[%clk 0:00:54]} 38... h6 {[%clk 0:00:22.9]} 39.
Kd4 {[%clk 0:00:40.5]} 39... hxg5 {[%clk 0:00:17]} 40. hxg5 {[%clk 0:00:41.4]}
40... Bc6 {[%clk 0:00:13.1]} 41. b5 {[%clk 0:00:34.5]} 41... Bb7 {[%clk
0:00:07.7]} 42. Rc1 {[%clk 0:00:29.4]} 42... f5 {[%clk 0:00:04.4]} 43. gxf6
{[%clk 0:00:28.6]} 43... gxf6 {[%clk 0:00:04.7]} 44. Rc7 {[%clk 0:00:27.7]}
44... Bxd5 {[%clk 0:00:03.2]} 45. exd5 {[%clk 0:00:28.6]} 45... Rd6 {[%clk
0:00:03.6]} 46. Kc5 {[%clk 0:00:22.7]} 46... Rbd8 {[%clk 0:00:03.3]} 47. Rh7
{[%clk 0:00:16.5]} 47... Kg8 {[%clk 0:00:03]} 48. Rag7+ {[%clk 0:00:13]} 48...
Kf8 {[%clk 0:00:03.3]} 49. Ra7 {[%clk 0:00:06.2]} 49... Rxd5+ {[%clk 0:00:03]}
50. Kc6 {[%clk 0:00:06.8]} 50... R5d6+ {[%clk 0:00:02.9]} 51. Kc5 {[%clk
0:00:06.9]} 51... Kg8 {[%clk 0:00:03.2]} 52. Rhc7 {[%clk 0:00:03.7]} 52... Rd5+
{[%clk 0:00:03.1]} 53. Kc4 {[%clk 0:00:04.2]} 53... R5d6 {[%clk 0:00:02.6]} 54.
Rc6 {[%clk 0:00:03.6]} 54... Rd4+ {[%clk 0:00:03.1]} 55. Kc5 {[%clk 0:00:03.8]}
55... R4d5+ {[%clk 0:00:03.7]} 56. Kb6 {[%clk 0:00:04.1]} 56... Rb8+ {[%clk
0:00:03.8]} 57. Rb7 {[%clk 0:00:04.4]} 57... Rxb7+ {[%clk 0:00:03.8]} 58. Kxb7
{[%clk 0:00:05.3]} 58... Rxb5+ {[%clk 0:00:04.6]} 59. Kc7 {[%clk 0:00:05.5]}
59... Kf7 {[%clk 0:00:04.4]} 60. Kd6 {[%clk 0:00:05.1]} 60... Re5 {[%clk
0:00:04.3]} 61. Rc1 {[%clk 0:00:05.4]} 61... Re8 {[%clk 0:00:03.9]} 62. Rg1
{[%clk 0:00:05.7]} 62... f5 {[%clk 0:00:03.7]} 63. Kd5 {[%clk 0:00:06.3]} 63...
Kf6 {[%clk 0:00:04.2]} 64. Kd4 {[%clk 0:00:06.4]} 64... f4 {[%clk 0:00:04.5]}
65. Kd3 {[%clk 0:00:06.4]} 65... Kf5 {[%clk 0:00:05.1]} 66. Ra1 {[%clk 0:00:04]}
66... f3 {[%clk 0:00:05.3]} 67. Ra7 {[%clk 0:00:03]} 67... Kf4 {[%clk
0:00:05.3]} 68. Rf7+ {[%clk 0:00:02.5]} 68... Kg3 {[%clk 0:00:05.3]} 69. Rg7+
{[%clk 0:00:03]} 69... Kf2 {[%clk 0:00:05.8]} 0-1

[Event "*** SCC Grand Prix: Titled Tuesday Blitz"]
[Site "Chess.com"]
[Date "2020.09.29"]
[Round "10"]
[White "lider34"]
[Black "Grineva_Marianna"]
[Result "0-1"]
[WhiteElo "2368"]
[BlackElo "2260"]
[TimeControl "180+1"]
[EndTime "11:57:37 PDT"]
[Termination "Grineva_Marianna won by checkmate"]

1. e4 {[%clk 0:03:00.9]} 1... c5 {[%clk 0:02:59.2]} 2. c3 {[%clk 0:02:57.8]}
2... d5 {[%clk 0:02:56.6]} 3. exd5 {[%clk 0:02:56.7]} 3... Qxd5 {[%clk
0:02:57.5]} 4. d4 {[%clk 0:02:57.1]} 4... Bf5 {[%clk 0:02:57.2]} 5. Nf3 {[%clk
0:02:55.3]} 5... Nf6 {[%clk 0:02:56.7]} 6. dxc5 {[%clk 0:02:51.9]} 6... Qxd1+
{[%clk 0:02:45.8]} 7. Kxd1 {[%clk 0:02:51.1]} 7... Nc6 {[%clk 0:02:44]} 8. Bb5
{[%clk 0:02:48.1]} 8... O-O-O+ {[%clk 0:02:43.7]} 9. Ke2 {[%clk 0:02:48]} 9...
a6 {[%clk 0:02:29]} 10. Bxc6 {[%clk 0:02:46.5]} 10... Bd3+ {[%clk 0:02:28.6]}
11. Ke1 {[%clk 0:02:44.6]} 11... bxc6 {[%clk 0:02:28.1]} 12. Ne5 {[%clk
0:02:44.6]} 12... Bc2 {[%clk 0:02:23.3]} 13. Nd2 {[%clk 0:02:34.4]} 13... Rd5
{[%clk 0:02:15.3]} 14. f4 {[%clk 0:02:30.1]} 14... Nd7 {[%clk 0:01:50.3]} 15.
Nxc6 {[%clk 0:02:21]} 15... Rxc5 {[%clk 0:01:43.6]} 16. Nb4 {[%clk 0:02:13.8]}
16... Bg6 {[%clk 0:01:28.1]} 17. Nb3 {[%clk 0:02:09.2]} 17... Rc4 {[%clk
0:01:21.9]} 18. Be3 {[%clk 0:02:06.7]} 18... e5 {[%clk 0:01:19.5]} 19. fxe5
{[%clk 0:01:58.8]} 19... Bxb4 {[%clk 0:01:16.6]} 20. cxb4 {[%clk 0:01:58.5]}
20... Nxe5 {[%clk 0:01:13.7]} 21. Bd4 {[%clk 0:01:23.9]} 21... Nd3+ {[%clk
0:01:00.6]} 22. Kd2 {[%clk 0:01:20.2]} 22... Nxb4 {[%clk 0:00:55.7]} 23. Rac1
{[%clk 0:01:18.1]} 23... Nc2 {[%clk 0:00:42.9]} 24. Rhd1 {[%clk 0:00:59.5]}
24... Re8 {[%clk 0:00:32]} 25. g4 {[%clk 0:00:47.3]} 25... a5 {[%clk 0:00:31.7]}
26. a4 {[%clk 0:00:42.4]} 26... Kb8 {[%clk 0:00:19.6]} 27. Bb6 {[%clk
0:00:39.2]} 27... Rb4 {[%clk 0:00:18.2]} 28. Nc5 {[%clk 0:00:29.9]} 28... Rxb6
{[%clk 0:00:14.1]} 29. Nd7+ {[%clk 0:00:28.7]} 29... Kb7 {[%clk 0:00:14.3]} 30.
Nxb6 {[%clk 0:00:29.6]} 30... Kxb6 {[%clk 0:00:14.9]} 31. Rxc2 {[%clk
0:00:21.4]} 31... Bxc2 {[%clk 0:00:13.6]} 32. Kxc2 {[%clk 0:00:20.7]} 32... Re2+
{[%clk 0:00:14.1]} 33. Rd2 {[%clk 0:00:19.9]} 33... Re4 {[%clk 0:00:13.8]} 34.
h3 {[%clk 0:00:19.8]} 34... Rxa4 {[%clk 0:00:13.5]} 35. Rf2 {[%clk 0:00:16.7]}
35... f6 {[%clk 0:00:13.1]} 36. Re2 {[%clk 0:00:15.7]} 36... Rc4+ {[%clk
0:00:12.7]} 37. Kd3 {[%clk 0:00:14.2]} 37... Rc7 {[%clk 0:00:11.8]} 38. Kd4
{[%clk 0:00:13.6]} 38... Kb5 {[%clk 0:00:11.8]} 39. Re8 {[%clk 0:00:12.4]} 39...
Kb4 {[%clk 0:00:09.8]} 40. Rb8+ {[%clk 0:00:11.1]} 40... Ka4 {[%clk 0:00:10.1]}
41. Rb6 {[%clk 0:00:10.5]} 41... Rd7+ {[%clk 0:00:09]} 42. Kc4 {[%clk
0:00:09.7]} 42... Rd1 {[%clk 0:00:07.5]} 43. Ra6 {[%clk 0:00:06.7]} 43... Rc1+
{[%clk 0:00:07.1]} 44. Kd4 {[%clk 0:00:06.7]} 44... Rc2 {[%clk 0:00:06.7]} 45.
Rb6 {[%clk 0:00:05.7]} 45... Rh2 {[%clk 0:00:05.2]} 46. Kc4 {[%clk 0:00:04.8]}
46... Rxh3 {[%clk 0:00:04.9]} 47. Rb5 {[%clk 0:00:04.5]} 47... Rg3 {[%clk
0:00:04.7]} 48. b3+ {[%clk 0:00:03.5]} 48... Ka3 {[%clk 0:00:03.3]} 49. Rxa5+
{[%clk 0:00:04.4]} 49... Kb2 {[%clk 0:00:04]} 50. Ra7 {[%clk 0:00:04.3]} 50...
Rxg4+ {[%clk 0:00:04.4]} 51. Kd5 {[%clk 0:00:04.2]} 51... Rg5+ {[%clk
0:00:04.7]} 52. Ke6 {[%clk 0:00:02.9]} 52... Kxb3 {[%clk 0:00:04.8]} 53. Rb7+
{[%clk 0:00:01.8]} 53... Kc4 {[%clk 0:00:04.3]} 54. Rc7+ {[%clk 0:00:02.7]}
54... Kd3 {[%clk 0:00:04.7]} 55. Rd7+ {[%clk 0:00:03.6]} 55... Ke4 {[%clk
0:00:05.3]} 56. Rc7 {[%clk 0:00:04.1]} 56... h5 {[%clk 0:00:05.9]} 57. Rc4+
{[%clk 0:00:03.9]} 57... Kf3 {[%clk 0:00:06.5]} 58. Ra4 {[%clk 0:00:04.8]} 58...
Kg3 {[%clk 0:00:06.2]} 59. Ra3+ {[%clk 0:00:05.7]} 59... Kg4 {[%clk 0:00:06.1]}
60. Ra2 {[%clk 0:00:06.6]} 60... Kh3 {[%clk 0:00:06.6]} 61. Ra3+ {[%clk
0:00:07.5]} 61... Rg3 {[%clk 0:00:07]} 62. Ra2 {[%clk 0:00:08.3]} 62... h4
{[%clk 0:00:07.1]} 63. Ra3 {[%clk 0:00:09.2]} 63... Rxa3 {[%clk 0:00:06.9]} 64.
Kf5 {[%clk 0:00:08.7]} 64... Rg3 {[%clk 0:00:07.5]} 65. Kf4 {[%clk 0:00:07.9]}
65... Kg2 {[%clk 0:00:08.2]} 66. Kf5 {[%clk 0:00:08.8]} 66... h3 {[%clk
0:00:08.8]} 67. Kf4 {[%clk 0:00:09.4]} 67... h2 {[%clk 0:00:09.5]} 68. Kf5
{[%clk 0:00:09.7]} 68... h1=Q {[%clk 0:00:09.1]} 69. Ke6 {[%clk 0:00:10.6]}
69... Qf1 {[%clk 0:00:09.5]} 70. Kf7 {[%clk 0:00:11.2]} 70... f5 {[%clk
0:00:09.7]} 71. Kg8 {[%clk 0:00:12.1]} 71... f4 {[%clk 0:00:10.4]} 72. Kf8
{[%clk 0:00:12.7]} 72... f3 {[%clk 0:00:11]} 73. Kg8 {[%clk 0:00:12.9]} 73...
Qa6 {[%clk 0:00:11.3]} 74. Kh7 {[%clk 0:00:13.1]} 74... g5 {[%clk 0:00:11.9]}
75. Kg8 {[%clk 0:00:13.1]} 75... g4 {[%clk 0:00:12.1]} 76. Kh8 {[%clk 0:00:14]}
76... Rh3+ {[%clk 0:00:12.8]} 77. Kg8 {[%clk 0:00:14.3]} 77... Rh6 {[%clk
0:00:12.6]} 78. Kg7 {[%clk 0:00:13.2]} 78... Rb6 {[%clk 0:00:12.7]} 79. Kf8
{[%clk 0:00:14.1]} 79... Rb7 {[%clk 0:00:13.3]} 80. Ke8 {[%clk 0:00:12.6]} 80...
Qa8# {[%clk 0:00:13.8]} 0-1